fUSD/lending_fUSD_20250513
["ID","MTS","AMOUNT","RATE_DAILY","PERIOD"]
[360946564,1747159896557,-1106.58,0.00012876,2]
[360946565,1747159896566,-400.0,0.00012876,2]
[360946566,1747159896576,-413.28,0.00012876,2]
[360946567,1747159896585,-400.0,0.00012876,2]
[360946568,1747159896594,-1973.13,0.00012876,2]
[360946569,1747159896603,-400.0,0.00012876,2]
[360946570,1747159896613,-400.0,0.00012876,2]
[360946571,1747159896623,-565.33,0.00012876,2]
[360946572,1747159896633,-1087.57,0.00012876,2]
[360946573,1747159896643,-2020.68,0.00012876,2]
[360946574,1747159896653,-400.0,0.00012876,2]
[360946575,1747159896664,-686.06,0.00012876,2]
[360946576,1747159896673,-400.0,0.00012876,2]
[360946577,1747159896683,-400.0,0.00012876,2]
[360946578,1747159896692,-400.0,0.00012876,2]
[360946579,1747159896702,-2493.43,0.00012876,2]
[360946580,1747159896712,-483.53,0.00012876,2]
[360946581,1747159896722,-433.02836069,0.00012876,2]
[360946582,1747159896736,-400.0,0.00012876,2]
[360946583,1747159896748,-523.64,0.00012876,2]
[360946584,1747159896760,-2179.19,0.00012876,2]
[360946585,1747159896773,-933.31,0.00012876,2]
[360946586,1747159896784,-1454.44,0.00012876,2]
[360946587,1747159896795,-448.16,0.00012876,2]
[360946588,1747159896807,-495.63,0.00012876,2]
[360946589,1747159896818,-669.67,0.00012876,2]
[360946590,1747159896828,-407.59,0.00012876,2]
[360946591,1747159896838,-2557.8,0.00012876,2]
[360946592,1747159896847,-733.19,0.00012876,2]
[360946593,1747159896857,-1387.03,0.00012876,2]
[360946594,1747159896867,-1323.75,0.00012876,2]
[360946595,1747159896877,-639.94,0.00012876,2]
[360946596,1747159896887,-1956.5,0.00012876,2]
[360946597,1747159896897,-400.0,0.00012876,2]
[360946598,1747159896907,-101544.96,0.00012876,2]
[360946599,1747159896917,-400.0,0.00012876,2]
[360946600,1747159896927,-447.02,0.00012876,2]
[360946601,1747159896938,-400.0,0.00012876,2]
[360946602,1747159896947,-400.0,0.00012876,2]
[360946603,1747159896957,-2181.62,0.00012876,2]
[360946604,1747159896966,-707.87,0.00012876,2]
[360946605,1747159896976,-946.15,0.00012876,2]
[360946606,1747159896990,-809.14,0.00012876,2]
[360946607,1747159896999,-676.8,0.00012876,2]
[360946608,1747159897009,-492.65,0.00012876,2]
[360946609,1747159897019,-419.410568,0.00012876,2]
[360946610,1747159897029,-151.0,0.00012909,2]
[360946611,1747159897038,-231.112644,0.00012911,2]
[360946612,1747159897047,-1200.453301,0.00012911,2]
[360946613,1747159897057,-1200.453301,0.00012911,2]
[360946614,1747159897066,-151.0,0.00012911,2]
[360946615,1747159897077,-4071.95,0.00012911,2]
[360946616,1747159897086,-1000.0,0.00012918,2]
[360946617,1747159897095,-151.8164947,0.00012954,2]
[360946618,1747159897104,-4284.6968666,0.00013,2]
[360946619,1747159897114,-1514.03495732,0.00013,2]
[360946620,1747159897123,-1000.0,0.00013,2]
[360946621,1747159897132,-446805.998557,0.00013,2]
[360946622,1747159897142,-5173.82645769,0.0001305,2]
[360946623,1747159897151,-150.0,0.00013073,2]
[360946624,1747159897161,-1003.81313277,0.000131,2]
[360946625,1747159897174,-161.43,0.00013144,2]
[360946626,1747159897183,-400.0,0.0001315,2]
[360946627,1747159897192,-2722.32,0.0001315,2]
[360946628,1747159897202,-154.726793,0.0001315,2]
[360946629,1747159897213,-151.0,0.0001315,2]
[360946630,1747159897222,-151.0,0.0001315,2]
[360946631,1747159897232,-242.116731,0.0001315,2]
[360946632,1747159897242,-242.116731,0.0001315,2]
[360946633,1747159897251,-151.0,0.0001315,2]
[360946634,1747159897261,-151.0,0.0001315,2]
[360946635,1747159897270,-916.93,0.0001315,2]
[360946636,1747159897279,-520.78,0.0001315,2]
[360946637,1747159897288,-506.41,0.0001315,2]
[360946638,1747159897297,-694.78,0.0001315,2]
[360946639,1747159897309,-456.6677857,0.0001315,2]
[360946640,1747159897318,-400.0,0.0001315,2]
[360946641,1747159897328,-400.0,0.0001315,2]
[360946642,1747159897337,-400.0,0.0001315,2]
[360946643,1747159897346,-626.45,0.0001315,2]
[360946644,1747159897355,-400.0,0.0001315,2]
[360946645,1747159897365,-626.11,0.0001315,2]
[360946646,1747159897374,-400.0,0.0001315,2]
[360946647,1747159897384,-400.0,0.0001315,2]
[360946648,1747159897393,-463.34,0.0001315,2]
[360946649,1747159897403,-488.25,0.0001315,2]
[360946650,1747159897413,-400.0,0.0001315,2]
[360946651,1747159897422,-400.0,0.0001315,2]
[360946652,1747159897433,-400.0,0.0001315,2]
[360946653,1747159897444,-400.0,0.0001315,2]
[360946654,1747159897453,-394.63654,0.0001315,2]
[360946655,1747159897462,-657.34,0.0001315,2]
[360946656,1747159897472,-394.63654,0.0001315,2]
[360946657,1747159897481,-400.0,0.0001315,2]
[360946658,1747159897490,-441.68,0.0001315,2]
[360946659,1747159897499,-400.0,0.0001315,2]
[360946660,1747159897508,-645.08,0.0001315,2]
[360946661,1747159897518,-400.0,0.0001315,2]
[360946662,1747159897527,-530.14,0.0001315,2]
[360946663,1747159897536,-400.0,0.0001315,2]
[360946664,1747159897545,-400.0,0.0001315,2]
[360946665,1747159897555,-400.0,0.0001315,2]
[360946666,1747159897564,-400.0,0.0001315,2]
[360946667,1747159897574,-400.0,0.0001315,2]
[360946668,1747159897583,-852.22,0.0001315,2]
[360946669,1747159897594,-400.0,0.0001315,2]
[360946670,1747159897604,-820.71,0.0001315,2]
[360946671,1747159897615,-400.0,0.0001315,2]
[360946672,1747159897624,-151.0,0.0001315,2]
[360946673,1747159897633,-543.62282033,0.0001315,2]
[360946674,1747159897643,-460.94173905,0.0001315,2]
[360946675,1747159897653,-408.39922,0.0001315,2]
[360946676,1747159897663,-400.0,0.0001315,2]
[360946677,1747159897672,-621.83,0.0001315,2]
[360946678,1747159897681,-400.0,0.0001315,2]
[360946679,1747159897691,-400.0,0.0001315,2]
[360946680,1747159897700,-400.0,0.0001315,2]
[360946681,1747159897709,-478.47,0.0001315,2]
[360946682,1747159897719,-400.0,0.0001315,2]
[360946683,1747159897728,-404.78,0.0001315,2]
[360946684,1747159897740,-524.11454563,0.0001315,2]
[360946685,1747159897749,-490.89705602,0.0001315,2]
[360946686,1747159897759,-400.0,0.0001315,2]
[360946687,1747159897768,-400.0,0.0001315,2]
[360946688,1747159897778,-1162.05,0.0001315,2]
[360946689,1747159897787,-400.0,0.0001315,2]
[360946690,1747159897797,-1079.27,0.0001315,2]
[360946691,1747159897806,-577.59,0.0001315,2]
[360946692,1747159897815,-426.15,0.0001315,2]
[360946693,1747159897824,-400.0,0.0001315,2]
[360946694,1747159897834,-3487.68,0.0001315,2]
[360946695,1747159897843,-151.0,0.0001315,2]
[360946696,1747159897853,-169.89388,0.0001315,2]
[360946697,1747159897863,-400.0,0.0001315,2]
[360946698,1747159897873,-400.0,0.0001315,2]
[360946699,1747159897882,-400.0,0.0001315,2]
[360946700,1747159897892,-151.0,0.0001315,2]
[360946701,1747159897901,-169.89388,0.0001315,2]
[360946702,1747159897911,-400.0,0.0001315,2]
[360946703,1747159897920,-1738.21,0.0001315,2]
[360946704,1747159897929,-459.19,0.0001315,2]
[360946705,1747159897938,-302.552997,0.0001315,2]
[360946706,1747159897948,-444.36,0.0001315,2]
[360946707,1747159897957,-302.552997,0.0001315,2]
[360946708,1747159897966,-400.0,0.0001315,2]
[360946709,1747159897976,-400.0,0.0001315,2]
[360946710,1747159897987,-615.27,0.0001315,2]
[360946711,1747159897996,-420.8,0.0001315,2]
[360946712,1747159898005,-400.0,0.0001315,2]
[360946713,1747159898015,-1176.5,0.0001315,2]
[360946714,1747159898024,-1437.22,0.0001315,2]
[360946715,1747159898034,-400.0,0.0001315,2]
[360946716,1747159898043,-652.56,0.0001315,2]
[360946717,1747159898053,-488.24,0.0001315,2]
[360946718,1747159898062,-400.0,0.0001315,2]
[360946719,1747159898071,-1273.02,0.0001315,2]
[360946720,1747159898080,-400.0,0.0001315,2]
[360946721,1747159898090,-400.0,0.0001315,2]
[360946722,1747159898100,-801.33,0.0001315,2]
[360946723,1747159898110,-788.97,0.0001315,2]
[360946724,1747159898310,-400.0,0.0001315,2]
[360946725,1747159898320,-414.37,0.0001315,2]
[360946726,1747159898330,-542.34,0.0001315,2]
[360946727,1747159898340,-449.97,0.0001315,2]
[360946728,1747159898349,-426.3,0.0001315,2]
[360946729,1747159898358,-372.683801,0.0001315,2]
[360946730,1747159898367,-400.0,0.0001315,2]
[360946731,1747159898376,-372.683801,0.0001315,2]
[360946732,1747159898386,-151.0,0.0001315,2]
[360946733,1747159898395,-1871.8,0.0001315,2]
[360946734,1747159898404,-400.0,0.0001315,2]
[360946735,1747159898413,-475.68,0.0001315,2]
[360946736,1747159898422,-1359.59,0.0001315,2]
[360946737,1747159898431,-472.81,0.0001315,2]
[360946738,1747159898440,-400.0,0.0001315,2]
[360946739,1747159898450,-539.11,0.0001315,2]
[360946740,1747159898459,-400.0,0.0001315,2]
[360946741,1747159898468,-1207.49,0.0001315,2]
[360946742,1747159898477,-400.0,0.0001315,2]
[360946743,1747159898487,-400.0,0.0001315,2]
[360946744,1747159898498,-400.0,0.0001315,2]
[360946745,1747159898507,-400.0,0.0001315,2]
[360946746,1747159898517,-1135.76,0.0001315,2]
[360946747,1747159898527,-426.356592,0.0001315,2]
[360946748,1747159898539,-1233.2,0.0001315,2]
[360946749,1747159898548,-657.57,0.0001315,2]
[360946750,1747159898559,-400.0,0.0001315,2]
[360946751,1747159898569,-726.64,0.0001315,2]
[360946752,1747159898580,-400.0,0.0001315,2]
[360946753,1747159898591,-529.97,0.0001315,2]
[360946754,1747159898601,-1268.75,0.0001315,2]
[360946755,1747159898611,-400.0,0.0001315,2]
[360946756,1747159898620,-400.0,0.0001315,2]
[360946757,1747159898629,-608.84,0.0001315,2]
[360946758,1747159898639,-400.0,0.0001315,2]
[360946759,1747159898648,-3023.021796,0.0001315,2]
[360946760,1747159898657,-457.91,0.0001315,2]
[360946761,1747159898669,-7701.691241,0.0001315,2]
[360946762,1747159898678,-416.03,0.0001315,2]
[360946763,1747159898688,-3023.021796,0.0001315,2]
[360946764,1747159898699,-995.85,0.0001315,2]
[360946765,1747159898710,-291.987093,0.0001315,2]
[360946766,1747159898720,-736.58,0.0001315,2]
[360946767,1747159898730,-620.613762,0.0001315,2]
[360946768,1747159898740,-400.0,0.0001315,2]
[360946769,1747159898749,-411.21,0.0001315,2]
[360946770,1747159898759,-620.613762,0.0001315,2]
[360946771,1747159898769,-553.17,0.0001315,2]
[360946772,1747159898779,-2771.94,0.0001315,2]
[360946773,1747159898790,-4041.915108,0.0001315,2]
[360946774,1747159898799,-4041.915108,0.0001315,2]
[360946775,1747159898809,-400.0,0.0001315,2]
[360946776,1747159898819,-547.99,0.0001315,2]
[360946777,1747159898829,-2640.23,0.0001315,2]
[360946778,1747159898839,-400.0,0.0001315,2]
[360946779,1747159898848,-1191.42,0.0001315,2]
[360946780,1747159898858,-400.0,0.0001315,2]
[360946781,1747159898867,-1798.17,0.0001315,2]
[360946782,1747159898876,-163.91431946,0.0001315,2]
[360946783,1747159898886,-3074.15,0.0001315,2]
[360946784,1747159898895,-1043.95,0.0001315,2]
[360946785,1747159898905,-828.17,0.0001315,2]
[360946786,1747159898914,-1909.44,0.0001315,2]
[360946787,1747159898924,-2209.39,0.0001315,2]
[360946788,1747159898933,-2113.1,0.0001315,2]
[360946789,1747159898943,-1584.79,0.0001315,2]
[360946790,1747159898952,-894.32,0.0001315,2]
[360946791,1747159898961,-2266.23,0.0001315,2]
[360946792,1747159898971,-400.0,0.0001315,2]
[360946793,1747159898980,-403.62,0.0001315,2]
[360946794,1747159898989,-400.0,0.0001315,2]
[360946795,1747159898999,-400.0,0.0001315,2]
[360946796,1747159899009,-1157.78,0.0001315,2]
[360946797,1747159899018,-448.59,0.0001315,2]
[360946798,1747159899026,-2334.67,0.0001315,2]
[360946799,1747159899036,-2166.25,0.0001315,2]
[360946800,1747159899045,-3592.14,0.0001315,2]
[360946801,1747159899054,-414.75,0.0001315,2]
[360946802,1747159899063,-576.56,0.0001315,2]
[360946803,1747159899072,-400.0,0.0001315,2]
[360946804,1747159899082,-400.0,0.0001315,2]
[360946805,1747159899091,-400.0,0.0001315,2]
[360946806,1747159899100,-151.0,0.0001315,2]
[360946807,1747159899109,-400.0,0.0001315,2]
[360946808,1747159899118,-529.13,0.0001315,2]
[360946809,1747159899128,-500.19,0.0001315,2]
[360946810,1747159899139,-1411.28,0.0001315,2]
[360946811,1747159899148,-400.0,0.0001315,2]
[360946812,1747159899162,-534.86,0.0001315,2]
[360946813,1747159899173,-445.9,0.0001315,2]
[360946814,1747159899184,-706.58,0.0001315,2]
[360946815,1747159899194,-1060.09,0.0001315,2]
[360946816,1747159899204,-440.85,0.0001315,2]
[360946817,1747159899214,-400.0,0.0001315,2]
[360946818,1747159899224,-782.86,0.0001315,2]
[360946819,1747159899234,-785.11,0.0001315,2]
[360946820,1747159899245,-508.12,0.0001315,2]
[360946821,1747159899254,-792.31,0.0001315,2]
[360946822,1747159899263,-507.26,0.0001315,2]
[360946823,1747159899272,-1373.03,0.0001315,2]
[360946824,1747159899281,-400.0,0.0001315,2]
[360946825,1747159899291,-439.37,0.0001315,2]
[360946826,1747159899300,-400.0,0.0001315,2]
[360946827,1747159899309,-835.87,0.0001315,2]
[360946828,1747159899320,-1203.29,0.0001315,2]
[360946829,1747159899328,-705.65,0.0001315,2]
[360946830,1747159899338,-871.93,0.0001315,2]
[360946831,1747159899348,-400.0,0.0001315,2]
[360946832,1747159899358,-320.542234,0.0001315,2]
[360946833,1747159899369,-400.0,0.0001315,2]
[360946834,1747159899378,-786.26,0.0001315,2]
[360946835,1747159899388,-320.542234,0.0001315,2]
[360946836,1747159899397,-801.16,0.0001315,2]
[360946837,1747159899407,-1841.1,0.0001315,2]
[360946838,1747159899416,-522.01,0.0001315,2]
[360946839,1747159899426,-400.0,0.0001315,2]
[360946840,1747159899436,-952.91,0.0001315,2]
[360946841,1747159899445,-589.31,0.0001315,2]
[360946842,1747159899454,-440.12,0.0001315,2]
[360946843,1747159899464,-689.79,0.0001315,2]
[360946844,1747159899473,-1040.35,0.0001315,2]
[360946845,1747159899483,-400.0,0.0001315,2]
[360946846,1747159899492,-2832.85,0.0001315,2]
[360946847,1747159899501,-400.0,0.0001315,2]
[360946848,1747159899511,-400.0,0.0001315,2]
[360946849,1747159899521,-837.08,0.0001315,2]
[360946850,1747159899532,-418.45,0.0001315,2]
[360946851,1747159899541,-722.75,0.0001315,2]
[360946852,1747159899551,-400.0,0.0001315,2]
[360946853,1747159899562,-1518.61,0.0001315,2]
[360946854,1747159899571,-538.57,0.0001315,2]
[360946855,1747159899580,-2035.72,0.0001315,2]
[360946856,1747159899589,-452.37,0.0001315,2]
[360946857,1747159899599,-400.0,0.0001315,2]
[360946858,1747159899609,-504.22,0.0001315,2]
[360946859,1747159899620,-699.02,0.0001315,2]
[360946860,1747159899629,-1636.63,0.0001315,2]
[360946861,1747159899639,-494.98,0.0001315,2]
[360946862,1747159899648,-1883.29,0.0001315,2]
[360946863,1747159899658,-610.23,0.0001315,2]
[360946864,1747159899667,-768.25,0.0001315,2]
[360946865,1747159899676,-768.75,0.0001315,2]
[360946866,1747159899686,-1014.11,0.0001315,2]
[360946867,1747159899695,-620.02,0.0001315,2]
[360946868,1747159899704,-1271.95,0.0001315,2]
[360946869,1747159899713,-400.0,0.0001315,2]
[360946870,1747159899722,-400.0,0.0001315,2]
[360946871,1747159899732,-756.59,0.0001315,2]
[360946872,1747159899742,-400.0,0.0001315,2]
[360946873,1747159899752,-400.0,0.0001315,2]
[360946874,1747159899761,-935.97,0.0001315,2]
[360946875,1747159899771,-1412.1,0.0001315,2]
[360946876,1747159899782,-539.94,0.0001315,2]
[360946877,1747159899793,-1632.7,0.0001315,2]
[360946878,1747159899803,-400.0,0.0001315,2]
[360946879,1747159899811,-871.79,0.0001315,2]
[360946880,1747159899821,-451.47,0.0001315,2]
[360946881,1747159899831,-400.0,0.0001315,2]
[360946882,1747159899842,-560.27,0.0001315,2]
[360946883,1747159899852,-400.0,0.0001315,2]
[360946884,1747159899862,-2068.68,0.0001315,2]
[360946885,1747159899871,-570.27,0.0001315,2]
[360946886,1747159899881,-967.47,0.0001315,2]
[360946887,1747159899891,-400.0,0.0001315,2]
[360946888,1747159899902,-669.93,0.0001315,2]
[360946889,1747159899911,-1036.32,0.0001315,2]
[360946890,1747159899922,-400.0,0.0001315,2]
[360946891,1747159899931,-444.85,0.0001315,2]
[360946892,1747159899941,-680.61,0.0001315,2]
[360946893,1747159899950,-4665.34,0.0001315,2]
[360946894,1747159899959,-400.0,0.0001315,2]
[360946895,1747159899969,-1314.16,0.0001315,2]
[360946896,1747159899978,-4183.88,0.0001315,2]
[360946897,1747159899988,-400.0,0.0001315,2]
[360946898,1747159899999,-547.25,0.0001315,2]
[360946899,1747159900009,-400.0,0.0001315,2]
[360946900,1747159900018,-579.54,0.0001315,2]
[360946901,1747159900028,-786.38,0.0001315,2]
[360946902,1747159900039,-2046.23,0.0001315,2]
[360946903,1747159900049,-1255.33,0.0001315,2]
[360946904,1747159900059,-577.34,0.0001315,2]
[360946905,1747159900069,-9519.31,0.0001315,2]
[360946906,1747159900078,-834.73,0.0001315,2]
[360946907,1747159900088,-400.0,0.0001315,2]
[360946908,1747159900098,-1346.7,0.0001315,2]
[360946909,1747159900109,-400.0,0.0001315,2]
[360946910,1747159900120,-2754.3,0.0001315,2]
[360946911,1747159900130,-10256.28,0.0001315,2]
[360946912,1747159900139,-400.0,0.0001315,2]
[360946913,1747159900149,-487.25,0.0001315,2]
[360946914,1747159900158,-400.0,0.0001315,2]
[360946915,1747159900171,-400.0,0.0001315,2]
[360946916,1747159900180,-2145.85,0.0001315,2]
[360946917,1747159900192,-778.75,0.0001315,2]
[360946918,1747159900203,-1086.29,0.0001315,2]
[360946919,1747159900213,-712.61,0.0001315,2]
[360946920,1747159900223,-400.0,0.0001315,2]
[360946921,1747159900232,-1146.85,0.0001315,2]
[360946922,1747159900242,-400.0,0.0001315,2]
[360946923,1747159900251,-427.04,0.0001315,2]
[360946924,1747159900260,-1787.73,0.0001315,2]
[360946925,1747159900270,-587.09,0.0001315,2]
[360946926,1747159900280,-151.0,0.0001315,2]
[360946927,1747159900290,-400.0,0.0001315,2]
[360946928,1747159900299,-2676.84,0.0001315,2]
[360946929,1747159900309,-936.8,0.0001315,2]
[360946930,1747159900319,-538.65,0.0001315,2]
[360946931,1747159900329,-570.54,0.0001315,2]
[360946932,1747159900339,-671.91,0.0001315,2]
[360946933,1747159900348,-400.0,0.0001315,2]
[360946934,1747159900360,-1004.59,0.0001315,2]
[360946935,1747159900369,-212.087228,0.0001315,2]
[360946936,1747159900379,-583.74,0.0001315,2]
[360946937,1747159900388,-400.0,0.0001315,2]
[360946938,1747159900398,-628.15,0.0001315,2]
[360946939,1747159900408,-212.087228,0.0001315,2]
[360946940,1747159900418,-409.42,0.0001315,2]
[360946941,1747159900428,-10626.02,0.0001315,2]
[360946942,1747159900438,-400.0,0.0001315,2]
[360946943,1747159900447,-515.12,0.0001315,2]
[360946944,1747159900457,-6049.69,0.0001315,2]
[360946945,1747159900466,-1033.11,0.0001315,2]
[360946946,1747159900476,-400.0,0.0001315,2]
[360946947,1747159900486,-437.19,0.0001315,2]
[360946948,1747159900497,-569.55,0.0001315,2]
[360946949,1747159900506,-467.47,0.0001315,2]
[360946950,1747159900516,-2264.96,0.0001315,2]
[360946951,1747159900526,-795.31,0.0001315,2]
[360946952,1747159900536,-405.13,0.0001315,2]
[360946953,1747159900545,-1277.12,0.0001315,2]
[360946954,1747159900555,-400.0,0.0001315,2]
[360946955,1747159900564,-400.0,0.0001315,2]
[360946956,1747159900574,-10483.18,0.0001315,2]
[360946957,1747159900583,-400.0,0.0001315,2]
[360946958,1747159900592,-1585.22,0.0001315,2]
[360946959,1747159900602,-843.23,0.0001315,2]
[360946960,1747159900612,-1106.58,0.0001315,2]
[360946961,1747159900621,-400.0,0.0001315,2]
[360946962,1747159900630,-413.28,0.0001315,2]
[360946963,1747159900639,-174.0453238,0.0001315,2]
[360946964,1747159900649,-1973.13,0.0001315,2]
[360946965,1747159900660,-400.0,0.0001315,2]
[360946966,1747159900669,-400.0,0.0001315,2]
[360946967,1747159900679,-565.33,0.0001315,2]
[360946968,1747159900689,-1087.57,0.0001315,2]
[360946969,1747159900698,-2020.68,0.0001315,2]
[360946970,1747159900709,-400.0,0.0001315,2]
[360946971,1747159900719,-686.06,0.0001315,2]
[360946972,1747159900729,-400.0,0.0001315,2]
[360946973,1747159900739,-400.0,0.0001315,2]
[360946974,1747159900749,-400.0,0.0001315,2]
[360946975,1747159900758,-2493.43,0.0001315,2]
[360946976,1747159900768,-483.53,0.0001315,2]
[360946977,1747159900778,-400.0,0.0001315,2]
[360946978,1747159900788,-523.64,0.0001315,2]
[360946979,1747159900797,-2179.19,0.0001315,2]
[360946980,1747159900807,-933.31,0.0001315,2]
[360946981,1747159900818,-1454.44,0.0001315,2]
[360946982,1747159900828,-495.63,0.0001315,2]
[360946983,1747159900837,-448.16,0.0001315,2]
[360946984,1747159900847,-669.67,0.0001315,2]
[360946985,1747159900857,-407.59,0.0001315,2]
[360946986,1747159900867,-2557.8,0.0001315,2]
[360946987,1747159900877,-733.19,0.0001315,2]
[360946988,1747159900887,-1387.03,0.0001315,2]
[360946989,1747159900896,-1323.75,0.0001315,2]
[360946990,1747159900905,-639.94,0.0001315,2]
[360946991,1747159900915,-1956.5,0.0001315,2]
[360946992,1747159900926,-400.0,0.0001315,2]
[360946993,1747159900935,-101544.96,0.0001315,2]
[360946994,1747159900945,-452.60729766,0.0001315,2]
[360946995,1747159900955,-447.02,0.0001315,2]
[360946996,1747159900965,-400.0,0.0001315,2]
[360946997,1747159900974,-400.0,0.0001315,2]
[360946998,1747159900985,-2181.62,0.0001315,2]
[360946999,1747159900994,-707.87,0.0001315,2]
[360947000,1747159901004,-946.15,0.0001315,2]
[360947001,1747159901014,-809.14,0.0001315,2]
[360947002,1747159901024,-676.8,0.0001315,2]
[360947003,1747159901033,-492.65,0.0001315,2]
[360947004,1747159901043,-235.388166,0.00013185,2]
[360947005,1747159901053,-168.538579,0.00013185,2]
[360947006,1747159901063,-3380.65519,0.00013185,2]
[360947007,1747159901072,-3380.65519,0.00013185,2]
[360947008,1747159901081,-649.911468,0.00013185,2]
[360947009,1747159901091,-649.911468,0.00013185,2]
[360947010,1747159901100,-151.0,0.00013185,2]
[360947011,1747159901110,-4071.95,0.00013185,2]
[360947012,1747159901120,-1000.0,0.00013188,2]
[360947013,1747159901316,-162.81,0.00013195,2]
[360947014,1747159901326,-150.0,0.00013207,2]
[360947015,1747159901336,-3292.0,0.00013259,2]
[360947016,1747159901345,-482.0,0.0001334,2]
[360947017,1747159901354,-998.98,0.00013364,2]
[360947018,1747159901364,-11736.88904072,0.00013368,2]
[360947019,1747159901373,-1075.0,0.00013381,2]
[360947020,1747159901382,-151.0,0.00013396,2]
[360947021,1747159901391,-151.0,0.00013396,2]
[360947022,1747159901401,-1020.25049671,0.00013424,2]
[360947023,1747159901411,-2307240.5914771,0.00013424,2]
[360947024,1747159901420,-400.0,0.00013424,2]
[360947025,1747159901429,-2722.32,0.00013424,2]
[360947026,1747159901439,-203.14504,0.00013424,2]
[360947027,1747159901448,-151.0,0.00013424,2]
[360947028,1747159901457,-916.93,0.00013424,2]
[360947029,1747159901466,-520.78,0.00013424,2]
[360947030,1747159901475,-506.41,0.00013424,2]
[360947031,1747159901485,-694.78,0.00013424,2]
[360947032,1747159901494,-400.0,0.00013424,2]
[360947033,1747159901503,-400.0,0.00013424,2]
[360947034,1747159901513,-400.0,0.00013424,2]
[360947035,1747159901522,-626.45,0.00013424,2]
[360947036,1747159901531,-400.0,0.00013424,2]
[360947037,1747159901541,-626.11,0.00013424,2]
[360947038,1747159901552,-400.0,0.00013424,2]
[360947039,1747159901561,-400.0,0.00013424,2]
[360947040,1747159901571,-463.34,0.00013424,2]
[360947041,1747159901580,-488.25,0.00013424,2]
[360947042,1747159901590,-400.0,0.00013424,2]
[360947043,1747159901600,-400.0,0.00013424,2]
[360947044,1747159901610,-400.0,0.00013424,2]
[360947045,1747159901619,-400.0,0.00013424,2]
[360947046,1747159901629,-657.34,0.00013424,2]
[360947047,1747159901638,-400.0,0.00013424,2]
[360947048,1747159901648,-441.68,0.00013424,2]
[360947049,1747159901658,-400.0,0.00013424,2]
[360947050,1747159901668,-645.08,0.00013424,2]
[360947051,1747159901678,-400.0,0.00013424,2]
[360947052,1747159901688,-530.14,0.00013424,2]
[360947053,1747159901697,-352.65353445,0.00013424,2]
[360947054,1747159901706,-400.0,0.00013424,2]
[360947055,1747159901715,-400.0,0.00013424,2]
[360947056,1747159901724,-400.0,0.00013424,2]
[360947057,1747159901735,-400.0,0.00013424,2]
[360947058,1747159901744,-852.22,0.00013424,2]
[360947059,1747159901754,-400.0,0.00013424,2]
[360947060,1747159901763,-820.71,0.00013424,2]
[360947061,1747159901772,-400.0,0.00013424,2]
[360947062,1747159901782,-400.0,0.00013424,2]
[360947063,1747159901791,-621.83,0.00013424,2]